[Event "Titled Tuesday Blitz May 16 Late 2023"]
[White "Makarian, Rudik"]
[Black "Hayrapetyan, Hovik"]
[WhiteFideId "44105681"]
[BlackFideId "13302639"]
[WhiteElo "2461"]
[BlackElo "2348"]
[Result "1-0"]
[Round "05"]
[TimeControl "180+2"]
[Date "2023.05.16"]
[WhiteClock "0:00:29"]
[BlackClock "0:00:00"]

1. d4 {[%clk 0:03:00]}  Nf6 {[%clk 0:02:59]} 2. c4 {[%clk 0:03:01]}  e6 {[%clk 0:02:59]} 3. Nf3 {[%clk 0:03:01]}  d5 {[%clk 0:02:59]} 4. g3 {[%clk 0:03:01]}  Be7 {[%clk 0:02:59]} 5. Bg2 {[%clk 0:03:01]}  O-O {[%clk 0:03:00]} 6. Nc3 {[%clk 0:03:01]}  dxc4 {[%clk 0:03:00]} 7. Ne5 {[%clk 0:03:02]}  Nc6 {[%clk 0:03:00]} 8. Bxc6 {[%clk 0:03:03]}  bxc6 {[%clk 0:03:01]} 9. Nxc6 {[%clk 0:03:03]}  Qe8 {[%clk 0:03:01]} 10. Nxe7+ {[%clk 0:03:04]}  Qxe7 {[%clk 0:03:02]} 11. Qa4 {[%clk 0:03:05]}  c5 {[%clk 0:03:03]} 12. dxc5 {[%clk 0:03:05]}  Qxc5 {[%clk 0:03:04]} 13. Be3 {[%clk 0:03:06]}  Qc7 {[%clk 0:03:04]} 14. Qa3 {[%clk 0:03:07]}  Bb7 {[%clk 0:02:59]} 15. f3 {[%clk 0:03:05]}  a6 {[%clk 0:02:54]} 16. Qc5 {[%clk 0:03:02]}  Qxc5 {[%clk 0:02:48]} 17. Bxc5 {[%clk 0:03:03]}  Rfc8 {[%clk 0:02:49]} 18. Bd4 {[%clk 0:03:02]}  Nd5 {[%clk 0:02:48]} 19. Nxd5 {[%clk 0:03:02]}  exd5 {[%clk 0:02:43]} 20. g4 {[%clk 0:03:03]}  a5 {[%clk 0:02:40]} 21. Kf2 {[%clk 0:03:02]}  a4 {[%clk 0:02:40]} 22. a3 {[%clk 0:03:01]}  Bc6 {[%clk 0:02:34]} 23. h4 {[%clk 0:03:00]}  Re8 {[%clk 0:02:19]} 24. g5 {[%clk 0:03:00]}  Bd7 {[%clk 0:02:08]} 25. h5 {[%clk 0:02:58]}  Bf5 {[%clk 0:02:03]} 26. Rad1 {[%clk 0:02:58]}  Rab8 {[%clk 0:01:05]} 27. h6 {[%clk 0:02:57]}  gxh6 {[%clk 0:01:02]} 28. gxh6 {[%clk 0:02:49]}  Bg6 {[%clk 0:00:51]} 29. Bc3 {[%clk 0:02:47]}  Rb5 {[%clk 0:00:41]} 30. Rh4 {[%clk 0:02:42]}  f5 {[%clk 0:00:39]} 31. Rhd4 {[%clk 0:02:35]}  Bf7 {[%clk 0:00:39]} 32. Rg1+ {[%clk 0:02:17]}  Bg6 {[%clk 0:00:39]} 33. Rgd1 {[%clk 0:02:14]}  Bf7 {[%clk 0:00:39]} 34. R1d2 {[%clk 0:01:53]}  Re6 {[%clk 0:00:37]} 35. Rh4 {[%clk 0:01:43]}  Rg6 {[%clk 0:00:34]} 36. Rd1 {[%clk 0:01:38]}  Be6 {[%clk 0:00:31]} 37. Ke3 {[%clk 0:01:23]}  Kf7 {[%clk 0:00:30]} 38. Kf4 {[%clk 0:01:17]}  Rg2 {[%clk 0:00:28]} 39. e3 {[%clk 0:01:16]}  Rb8 {[%clk 0:00:25]} 40. Rhh1 {[%clk 0:01:06]}  Rbg8 {[%clk 0:00:25]} 41. Bg7 {[%clk 0:01:07]}  Ke7 {[%clk 0:00:09]} 42. Rhg1 {[%clk 0:00:56]}  Rxg1 {[%clk 0:00:10]} 43. Rxg1 {[%clk 0:00:57]}  Kd6 {[%clk 0:00:10]} 44. Be5+ {[%clk 0:00:50]}  Ke7 {[%clk 0:00:10]} 45. Bg7 {[%clk 0:00:47]}  Kd6 {[%clk 0:00:09]} 46. Kg5 {[%clk 0:00:47]}  Ke7 {[%clk 0:00:08]} 47. Rd1 {[%clk 0:00:45]}  Kf7 {[%clk 0:00:08]} 48. Kf4 {[%clk 0:00:44]}  Rb8 {[%clk 0:00:07]} 49. Rg1 {[%clk 0:00:43]}  Rg8 {[%clk 0:00:07]} 50. Ke5 {[%clk 0:00:44]}  Ke7 {[%clk 0:00:01]} 51. Bf6+ {[%clk 0:00:42]}  Kd7 {[%clk 0:00:02]} 52. Rg7+ {[%clk 0:00:36]}  Rxg7 {[%clk 0:00:02]} 53. hxg7 {[%clk 0:00:37]}  h5 {[%clk 0:00:02]} 54. f4 {[%clk 0:00:32]}  h4 {[%clk 0:00:01]} 55. Bxh4 {[%clk 0:00:31]}  Bg8 {[%clk 0:00:02]} 56. Kxf5 {[%clk 0:00:30]}  Kd6 {[%clk 0:00:01]} 57. Kf6 {[%clk 0:00:30]}  Bh7 {[%clk 0:00:00]} 58. Kf7 {[%clk 0:00:29]} 1-0


[Site "https://www.chess.com"]

[Event "Titled Tuesday Blitz May 16 Late 2023"]
[White "Klukin, Kirill"]
[Black "Pichot, Alan"]
[WhiteFideId "24199273"]
[BlackFideId "110973"]
[WhiteElo "2344"]
[BlackElo "2573"]
[Result "1/2-1/2"]
[Round "05"]
[TimeControl "180+2"]
[Date "2023.05.16"]
[WhiteClock "0:01:21"]
[BlackClock "0:00:13"]

1. d4 {[%clk 0:03:00]}  Nf6 {[%clk 0:02:56]} 2. Nf3 {[%clk 0:02:57]}  d5 {[%clk 0:02:56]} 3. c4 {[%clk 0:02:57]}  e6 {[%clk 0:02:55]} 4. Nc3 {[%clk 0:02:57]}  Bb4 {[%clk 0:02:47]} 5. Bd2 {[%clk 0:02:57]}  O-O {[%clk 0:02:45]} 6. e3 {[%clk 0:02:57]}  b6 {[%clk 0:02:38]} 7. cxd5 {[%clk 0:02:56]}  exd5 {[%clk 0:02:38]} 8. Bd3 {[%clk 0:02:57]}  Re8 {[%clk 0:02:34]} 9. Rc1 {[%clk 0:02:55]}  Bf8 {[%clk 0:02:32]} 10. Ne5 {[%clk 0:02:53]}  c5 {[%clk 0:02:29]} 11. O-O {[%clk 0:02:53]}  Bb7 {[%clk 0:02:25]} 12. f4 {[%clk 0:02:52]}  Nc6 {[%clk 0:02:25]} 13. Ne2 {[%clk 0:02:46]}  Ne4 {[%clk 0:02:25]} 14. Bxe4 {[%clk 0:02:43]}  dxe4 {[%clk 0:02:25]} 15. Nxc6 {[%clk 0:02:43]}  Bxc6 {[%clk 0:02:25]} 16. Bc3 {[%clk 0:02:43]}  Bb5 {[%clk 0:02:17]} 17. Rf2 {[%clk 0:02:41]}  Bd3 {[%clk 0:02:12]} 18. dxc5 {[%clk 0:02:41]}  Bxc5 {[%clk 0:02:08]} 19. Nd4 {[%clk 0:02:38]}  Qd7 {[%clk 0:02:06]} 20. f5 {[%clk 0:02:32]}  Bxd4 {[%clk 0:01:52]} 21. Bxd4 {[%clk 0:02:31]}  f6 {[%clk 0:01:53]} 22. h3 {[%clk 0:02:30]}  Rac8 {[%clk 0:01:52]} 23. Rc3 {[%clk 0:02:26]}  Rxc3 {[%clk 0:01:51]} 24. Bxc3 {[%clk 0:02:27]}  Qf7 {[%clk 0:01:44]} 25. a3 {[%clk 0:02:23]}  Rd8 {[%clk 0:01:43]} 26. Qg4 {[%clk 0:02:20]}  Rd5 {[%clk 0:01:42]} 27. Qg3 {[%clk 0:02:17]}  h6 {[%clk 0:01:33]} 28. Qb8+ {[%clk 0:02:11]}  Kh7 {[%clk 0:01:33]} 29. Rf4 {[%clk 0:02:11]}  Qd7 {[%clk 0:01:27]} 30. Kh2 {[%clk 0:02:00]}  Rxf5 {[%clk 0:01:13]} 31. Rxf5 {[%clk 0:01:24]}  Qxf5 {[%clk 0:01:13]} 32. Qxa7 {[%clk 0:01:25]}  Qf2 {[%clk 0:00:23]} 33. Qc7 {[%clk 0:01:24]}  b5 {[%clk 0:00:13]} 34. Qg3 {[%clk 0:01:22]}  Qxg3+ {[%clk 0:00:13]} 35. Kxg3 {[%clk 0:01:21]}  Kg6 {[%clk 0:00:13]} 1/2-1/2


[Site "https://www.chess.com"]

[Event "Titled Tuesday Blitz May 16 Late 2023"]
[White "Volkov, Maksim"]
[Black "Babazada, Khazar"]
[WhiteFideId "54123070"]
[BlackFideId "13413554"]
[WhiteElo "2297"]
[BlackElo "2351"]
[Result "1-0"]
[Round "05"]
[TimeControl "180+2"]
[Date "2023.05.16"]
[WhiteClock "0:00:10"]
[BlackClock "0:00:06"]

1. d4 {[%clk 0:03:00]}  Nf6 {[%clk 0:01:36]} 2. c4 {[%clk 0:03:00]}  g6 {[%clk 0:01:34]} 3. g3 {[%clk 0:02:59]}  Bg7 {[%clk 0:01:34]} 4. Bg2 {[%clk 0:02:59]}  O-O {[%clk 0:01:35]} 5. Nc3 {[%clk 0:03:00]}  d6 {[%clk 0:01:35]} 6. Nf3 {[%clk 0:03:00]}  Nbd7 {[%clk 0:01:36]} 7. O-O {[%clk 0:03:00]}  a6 {[%clk 0:01:36]} 8. Re1 {[%clk 0:02:48]}  e5 {[%clk 0:01:36]} 9. e4 {[%clk 0:02:48]}  exd4 {[%clk 0:01:37]} 10. Nxd4 {[%clk 0:02:49]}  Re8 {[%clk 0:01:37]} 11. h3 {[%clk 0:02:47]}  Rb8 {[%clk 0:01:37]} 12. a4 {[%clk 0:02:45]}  Ne5 {[%clk 0:01:37]} 13. b3 {[%clk 0:02:44]}  c5 {[%clk 0:01:37]} 14. Nde2 {[%clk 0:02:43]}  Bxh3 {[%clk 0:01:10]} 15. Bxh3 {[%clk 0:02:07]}  Nf3+ {[%clk 0:01:10]} 16. Kg2 {[%clk 0:02:08]}  Nxe1+ {[%clk 0:01:11]} 17. Qxe1 {[%clk 0:02:09]}  Nxe4 {[%clk 0:01:11]} 18. Nxe4 {[%clk 0:02:06]}  Rxe4 {[%clk 0:00:41]} 19. Ra2 {[%clk 0:02:04]}  d5 {[%clk 0:00:32]} 20. Bf4 {[%clk 0:02:00]}  Ra8 {[%clk 0:00:24]} 21. Qb1 {[%clk 0:01:10]}  Re8 {[%clk 0:00:20]} 22. cxd5 {[%clk 0:01:00]}  Qxd5+ {[%clk 0:00:19]} 23. Kg1 {[%clk 0:01:01]}  Rad8 {[%clk 0:00:16]} 24. Rd2 {[%clk 0:01:01]}  Qh5 {[%clk 0:00:14]} 25. Rxd8 {[%clk 0:01:00]}  Rxd8 {[%clk 0:00:14]} 26. Bf1 {[%clk 0:01:00]}  b5 {[%clk 0:00:12]} 27. axb5 {[%clk 0:00:56]}  axb5 {[%clk 0:00:13]} 28. Be3 {[%clk 0:00:57]}  c4 {[%clk 0:00:06]} 29. Nf4 {[%clk 0:00:54]}  Qf3 {[%clk 0:00:04]} 30. bxc4 {[%clk 0:00:52]}  bxc4 {[%clk 0:00:05]} 31. Be2 {[%clk 0:00:48]}  Qc6 {[%clk 0:00:04]} 32. Qb6 {[%clk 0:00:43]}  Qa8 {[%clk 0:00:02]} 33. Bxc4 {[%clk 0:00:40]}  Rd1+ {[%clk 0:00:02]} 34. Bf1 {[%clk 0:00:40]}  h5 {[%clk 0:00:02]} 35. Qb3 {[%clk 0:00:38]}  Ra1 {[%clk 0:00:03]} 36. Qc4 {[%clk 0:00:36]}  Kh7 {[%clk 0:00:02]} 37. Kh2 {[%clk 0:00:37]}  Qe8 {[%clk 0:00:02]} 38. Bg2 {[%clk 0:00:36]}  Qe5 {[%clk 0:00:02]} 39. Qxf7 {[%clk 0:00:34]}  Ra6 {[%clk 0:00:03]} 40. Qb7 {[%clk 0:00:33]}  Rf6 {[%clk 0:00:03]} 41. Be4 {[%clk 0:00:32]}  h4 {[%clk 0:00:02]} 42. Qd5 {[%clk 0:00:26]}  hxg3+ {[%clk 0:00:03]} 43. fxg3 {[%clk 0:00:21]}  Qxd5 {[%clk 0:00:04]} 44. Bxd5 {[%clk 0:00:20]}  Ra6 {[%clk 0:00:05]} 45. Be4 {[%clk 0:00:20]}  Bh6 {[%clk 0:00:06]} 46. Kh3 {[%clk 0:00:20]}  Kg7 {[%clk 0:00:06]} 47. Bd4+ {[%clk 0:00:18]}  Kh7 {[%clk 0:00:06]} 48. Nxg6 {[%clk 0:00:16]}  Rxg6 {[%clk 0:00:06]} 49. Kh4 {[%clk 0:00:17]}  Bg7 {[%clk 0:00:04]} 50. Ba7 {[%clk 0:00:13]}  Bf6+ {[%clk 0:00:01]} 51. Kh5 {[%clk 0:00:13]}  Kg7 {[%clk 0:00:02]} 52. Bxg6 {[%clk 0:00:14]}  Be5 {[%clk 0:00:03]} 53. g4 {[%clk 0:00:14]}  Bf6 {[%clk 0:00:04]} 54. Bf5 {[%clk 0:00:13]}  Be5 {[%clk 0:00:04]} 55. g5 {[%clk 0:00:14]}  Bc3 {[%clk 0:00:04]} 56. Be3 {[%clk 0:00:13]}  Be5 {[%clk 0:00:05]} 57. g6 {[%clk 0:00:13]}  Bf6 {[%clk 0:00:05]} 58. Bh6+ {[%clk 0:00:13]}  Kg8 {[%clk 0:00:06]} 59. Be6+ {[%clk 0:00:12]}  Kh8 {[%clk 0:00:06]} 60. Bf8 {[%clk 0:00:12]}  Be5 {[%clk 0:00:06]} 61. Kg5 {[%clk 0:00:12]}  Bd4 {[%clk 0:00:07]} 62. Kf5 {[%clk 0:00:11]}  Bg7 {[%clk 0:00:06]} 63. Bxg7+ {[%clk 0:00:11]}  Kxg7 {[%clk 0:00:07]} 64. Kg5 {[%clk 0:00:12]}  Kh8 {[%clk 0:00:06]} 65. Bg4 {[%clk 0:00:10]} 1-0


[Site "https://www.chess.com"]

[Event "Titled Tuesday Blitz May 16 Late 2023"]
[White "Bluebaum, Matthias"]
[Black "Jaracz, Pawel"]
[WhiteFideId "24651516"]
[BlackFideId "1102222"]
[WhiteElo "2639"]
[BlackElo "2438"]
[Result "1-0"]
[Round "05"]
[TimeControl "180+2"]
[Date "2023.05.16"]
[WhiteClock "0:00:19"]
[BlackClock "0:00:00"]

1. d4 {[%clk 0:03:00]}  Nf6 {[%clk 0:02:55]} 2. c4 {[%clk 0:03:01]}  c6 {[%clk 0:02:55]} 3. Nf3 {[%clk 0:03:01]}  d5 {[%clk 0:02:55]} 4. Nc3 {[%clk 0:03:02]}  a6 {[%clk 0:02:53]} 5. Qc2 {[%clk 0:03:02]}  e6 {[%clk 0:02:50]} 6. e4 {[%clk 0:02:57]}  dxe4 {[%clk 0:02:48]} 7. Nxe4 {[%clk 0:02:58]}  Nxe4 {[%clk 0:02:48]} 8. Qxe4 {[%clk 0:02:59]}  Nd7 {[%clk 0:02:48]} 9. Bd3 {[%clk 0:02:53]}  Bb4+ {[%clk 0:02:46]} 10. Bd2 {[%clk 0:02:54]}  Nf6 {[%clk 0:02:45]} 11. Qe3 {[%clk 0:02:51]}  Bxd2+ {[%clk 0:02:43]} 12. Qxd2 {[%clk 0:02:51]}  O-O {[%clk 0:02:40]} 13. O-O {[%clk 0:02:51]}  b6 {[%clk 0:02:34]} 14. Rad1 {[%clk 0:02:45]}  Bb7 {[%clk 0:02:34]} 15. Qf4 {[%clk 0:02:45]}  Qb8 {[%clk 0:02:23]} 16. Qh4 {[%clk 0:02:31]}  h6 {[%clk 0:02:15]} 17. c5 {[%clk 0:02:27]}  a5 {[%clk 0:02:11]} 18. b3 {[%clk 0:02:07]}  Ba6 {[%clk 0:02:10]} 19. Bxa6 {[%clk 0:02:00]}  Rxa6 {[%clk 0:02:10]} 20. Rd3 {[%clk 0:01:50]}  Rd8 {[%clk 0:02:07]} 21. Ne5 {[%clk 0:01:28]}  bxc5 {[%clk 0:02:07]} 22. Rg3 {[%clk 0:01:28]}  Kf8 {[%clk 0:02:07]} 23. Ng4 {[%clk 0:01:28]}  Ng8 {[%clk 0:02:03]} 24. dxc5 {[%clk 0:01:24]}  a4 {[%clk 0:01:50]} 25. h3 {[%clk 0:01:04]}  Rd4 {[%clk 0:01:44]} 26. Qh5 {[%clk 0:01:01]}  Rd5 {[%clk 0:01:42]} 27. Qh4 {[%clk 0:01:00]}  axb3 {[%clk 0:01:12]} 28. Rxb3 {[%clk 0:01:01]}  Qd8 {[%clk 0:01:07]} 29. Qg3 {[%clk 0:01:00]}  Ra8 {[%clk 0:01:00]} 30. Re1 {[%clk 0:00:39]}  Ne7 {[%clk 0:00:26]} 31. Ne5 {[%clk 0:00:36]}  Nf5 {[%clk 0:00:26]} 32. Qc3 {[%clk 0:00:32]}  Ne7 {[%clk 0:00:18]} 33. Qf3 {[%clk 0:00:31]}  f6 {[%clk 0:00:17]} 34. Rb7 {[%clk 0:00:27]}  Kg8 {[%clk 0:00:14]} 35. Nc4 {[%clk 0:00:21]}  e5 {[%clk 0:00:08]} 36. Nb6 {[%clk 0:00:20]}  Rxa2 {[%clk 0:00:08]} 37. Nxd5 {[%clk 0:00:20]}  Nxd5 {[%clk 0:00:07]} 38. Qg4 {[%clk 0:00:19]}  Qf8 {[%clk 0:00:07]} 39. Qe6+ {[%clk 0:00:18]}  Kh7 {[%clk 0:00:07]} 40. Qxc6 {[%clk 0:00:19]}  Nf4 {[%clk 0:00:07]} 41. Qe4+ {[%clk 0:00:18]}  Kh8 {[%clk 0:00:00]} 42. Reb1 {[%clk 0:00:19]} 1-0


[Site "https://www.chess.com"]

[Event "Titled Tuesday Blitz May 16 Late 2023"]
[White "Sieciechowicz, Marcin"]
[Black "Mekhitarian, Krikor Sevag"]
[WhiteFideId "1130170"]
[BlackFideId "2107660"]
[WhiteElo "2302"]
[BlackElo "2604"]
[Result "1-0"]
[Round "05"]
[TimeControl "180+2"]
[Date "2023.05.16"]
[WhiteClock "0:00:04"]
[BlackClock "0:00:00"]

1. d4 {[%clk 0:03:00]}  d5 {[%clk 0:02:59]} 2. c4 {[%clk 0:03:01]}  c6 {[%clk 0:02:58]} 3. Nf3 {[%clk 0:03:01]}  Nf6 {[%clk 0:02:59]} 4. Nc3 {[%clk 0:03:01]}  e6 {[%clk 0:02:58]} 5. Bg5 {[%clk 0:03:01]}  h6 {[%clk 0:02:58]} 6. Bh4 {[%clk 0:03:01]}  Be7 {[%clk 0:02:58]} 7. e3 {[%clk 0:03:01]}  O-O {[%clk 0:02:53]} 8. Rc1 {[%clk 0:03:01]}  Ne4 {[%clk 0:02:51]} 9. Bxe7 {[%clk 0:03:00]}  Qxe7 {[%clk 0:02:52]} 10. Bd3 {[%clk 0:02:59]}  Nxc3 {[%clk 0:02:52]} 11. Rxc3 {[%clk 0:03:00]}  dxc4 {[%clk 0:02:53]} 12. Bxc4 {[%clk 0:03:00]}  Nd7 {[%clk 0:02:53]} 13. O-O {[%clk 0:03:00]}  b6 {[%clk 0:02:53]} 14. Bd3 {[%clk 0:02:58]}  c5 {[%clk 0:02:44]} 15. Qc2 {[%clk 0:02:59]}  Bb7 {[%clk 0:02:39]} 16. Bh7+ {[%clk 0:02:58]}  Kh8 {[%clk 0:02:39]} 17. Be4 {[%clk 0:02:59]}  Bxe4 {[%clk 0:02:23]} 18. Qxe4 {[%clk 0:03:00]}  cxd4 {[%clk 0:02:22]} 19. Nxd4 {[%clk 0:02:59]}  Nc5 {[%clk 0:02:23]} 20. Qc2 {[%clk 0:02:57]}  a5 {[%clk 0:02:20]} 21. Nb3 {[%clk 0:02:56]}  Nxb3 {[%clk 0:01:54]} 22. Qxb3 {[%clk 0:02:57]}  Rac8 {[%clk 0:01:32]} 23. Qxb6 {[%clk 0:02:50]}  Rxc3 {[%clk 0:01:30]} 24. bxc3 {[%clk 0:02:51]}  Qa3 {[%clk 0:01:30]} 25. Qb3 {[%clk 0:02:51]}  Qc5 {[%clk 0:01:30]} 26. h3 {[%clk 0:02:45]}  Rc8 {[%clk 0:01:29]} 27. Rc1 {[%clk 0:02:45]}  h5 {[%clk 0:01:20]} 28. c4 {[%clk 0:02:44]}  Kg8 {[%clk 0:01:20]} 29. Qd3 {[%clk 0:02:42]}  g6 {[%clk 0:01:20]} 30. Rc2 {[%clk 0:02:40]}  Kf8 {[%clk 0:01:07]} 31. Qd4 {[%clk 0:02:40]}  Ke7 {[%clk 0:01:08]} 32. Kf1 {[%clk 0:02:38]}  e5 {[%clk 0:00:59]} 33. Qxc5+ {[%clk 0:02:37]}  Rxc5 {[%clk 0:01:00]} 34. Ke2 {[%clk 0:02:34]}  e4 {[%clk 0:01:00]} 35. g3 {[%clk 0:02:25]}  h4 {[%clk 0:00:53]} 36. g4 {[%clk 0:02:21]}  Ke6 {[%clk 0:00:45]} 37. Kd2 {[%clk 0:02:19]}  f5 {[%clk 0:00:45]} 38. gxf5+ {[%clk 0:02:17]}  Rxf5 {[%clk 0:00:46]} 39. Kc3 {[%clk 0:01:55]}  Rf3 {[%clk 0:00:40]} 40. Kd4 {[%clk 0:01:56]}  Rxh3 {[%clk 0:00:40]} 41. c5 {[%clk 0:01:51]}  Kd7 {[%clk 0:00:37]} 42. Kxe4 {[%clk 0:01:50]}  Kc6 {[%clk 0:00:37]} 43. Kf4 {[%clk 0:01:41]}  Rh1 {[%clk 0:00:34]} 44. Kg4 {[%clk 0:01:41]}  h3 {[%clk 0:00:33]} 45. Kg3 {[%clk 0:01:41]}  g5 {[%clk 0:00:28]} 46. Kg4 {[%clk 0:01:18]}  a4 {[%clk 0:00:23]} 47. a3 {[%clk 0:01:09]}  h2 {[%clk 0:00:18]} 48. Kg3 {[%clk 0:01:09]}  g4 {[%clk 0:00:17]} 49. Kg2 {[%clk 0:00:55]}  Ra1 {[%clk 0:00:17]} 50. Kxh2 {[%clk 0:00:55]}  Rxa3 {[%clk 0:00:18]} 51. Kg3 {[%clk 0:00:56]}  Rb3 {[%clk 0:00:15]} 52. Kxg4 {[%clk 0:00:55]}  a3 {[%clk 0:00:16]} 53. Rc1 {[%clk 0:00:20]}  Rb2 {[%clk 0:00:12]} 54. f4 {[%clk 0:00:14]}  a2 {[%clk 0:00:12]} 55. Ra1 {[%clk 0:00:14]}  Kxc5 {[%clk 0:00:13]} 56. Kf5 {[%clk 0:00:14]}  Kb4 {[%clk 0:00:14]} 57. e4 {[%clk 0:00:14]}  Kb3 {[%clk 0:00:11]} 58. e5 {[%clk 0:00:14]}  Rb1 {[%clk 0:00:10]} 59. Rxa2 {[%clk 0:00:14]}  Kxa2 {[%clk 0:00:11]} 60. Ke6 {[%clk 0:00:10]}  Rb6+ {[%clk 0:00:10]} 61. Kf7 {[%clk 0:00:10]}  Kb3 {[%clk 0:00:04]} 62. e6 {[%clk 0:00:08]}  Kc4 {[%clk 0:00:04]} 63. e7 {[%clk 0:00:07]}  Rb7 {[%clk 0:00:04]} 64. f5 {[%clk 0:00:05]}  Kd5 {[%clk 0:00:04]} 65. f6 {[%clk 0:00:04]}  Kd6 {[%clk 0:00:05]} 66. Kf8 {[%clk 0:00:04]}  Rb8+ {[%clk 0:00:00]} 67. e8=Q {[%clk 0:00:04]} 1-0


[Site "https://www.chess.com"]

[Event "Titled Tuesday Blitz May 16 Late 2023"]
[White "Matinian, Nikita"]
[Black "Bordi, Kevin"]
[WhiteFideId "24129100"]
[BlackFideId "621862"]
[WhiteElo "2422"]
[BlackElo "2814"]
[Result "1-0"]
[Round "05"]
[TimeControl "180+2"]
[Date "2023.05.16"]
[WhiteClock "0:00:25"]
[BlackClock "0:00:01"]

1. e4 {[%clk 0:02:58]}  d5 {[%clk 0:03:00]} 2. exd5 {[%clk 0:02:57]}  Qxd5 {[%clk 0:03:01]} 3. Nc3 {[%clk 0:02:57]}  Qa5 {[%clk 0:03:01]} 4. Nf3 {[%clk 0:02:56]}  Nf6 {[%clk 0:03:01]} 5. d4 {[%clk 0:02:56]}  c6 {[%clk 0:03:02]} 6. Bd2 {[%clk 0:02:56]}  Bf5 {[%clk 0:03:02]} 7. Bc4 {[%clk 0:02:52]}  e6 {[%clk 0:03:02]} 8. Qe2 {[%clk 0:02:52]}  Bb4 {[%clk 0:03:02]} 9. a3 {[%clk 0:02:48]}  Nbd7 {[%clk 0:03:01]} 10. O-O {[%clk 0:02:47]}  Bxc3 {[%clk 0:03:01]} 11. Bxc3 {[%clk 0:02:48]}  Qc7 {[%clk 0:03:02]} 12. b4 {[%clk 0:02:45]}  O-O {[%clk 0:03:01]} 13. Bb3 {[%clk 0:02:39]}  Bg4 {[%clk 0:02:52]} 14. h3 {[%clk 0:02:38]}  Bh5 {[%clk 0:02:52]} 15. g4 {[%clk 0:02:20]}  Bg6 {[%clk 0:02:52]} 16. Ne5 {[%clk 0:02:20]}  Nxe5 {[%clk 0:02:51]} 17. dxe5 {[%clk 0:02:21]}  Nd5 {[%clk 0:02:50]} 18. Bd2 {[%clk 0:02:20]}  c5 {[%clk 0:02:42]} 19. f4 {[%clk 0:02:06]}  c4 {[%clk 0:01:32]} 20. Bxc4 {[%clk 0:02:01]}  Bxc2 {[%clk 0:01:02]} 21. Rac1 {[%clk 0:02:01]}  Qb6+ {[%clk 0:01:01]} 22. Kh2 {[%clk 0:01:51]}  Ba4 {[%clk 0:01:00]} 23. f5 {[%clk 0:01:49]}  Rfd8 {[%clk 0:00:53]} 24. f6 {[%clk 0:01:47]}  g6 {[%clk 0:00:45]} 25. Qe1 {[%clk 0:01:43]}  Rd7 {[%clk 0:00:40]} 26. Bh6 {[%clk 0:01:20]}  Rad8 {[%clk 0:00:32]} 27. Rf3 {[%clk 0:01:06]}  Bb5 {[%clk 0:00:29]} 28. Bxd5 {[%clk 0:00:59]}  exd5 {[%clk 0:00:29]} 29. Qh4 {[%clk 0:00:59]}  Qe6 {[%clk 0:00:19]} 30. Re1 {[%clk 0:00:39]}  d4 {[%clk 0:00:13]} 31. Bg5 {[%clk 0:00:34]}  Qe8 {[%clk 0:00:12]} 32. e6 {[%clk 0:00:33]}  fxe6 {[%clk 0:00:12]} 33. f7+ {[%clk 0:00:30]}  Rxf7 {[%clk 0:00:12]} 34. Rxf7 {[%clk 0:00:30]}  Qxf7 {[%clk 0:00:13]} 35. Bxd8 {[%clk 0:00:31]}  d3 {[%clk 0:00:10]} 36. Qf6 {[%clk 0:00:31]}  Qd7 {[%clk 0:00:10]} 37. Be7 {[%clk 0:00:25]}  Qc7+ {[%clk 0:00:05]} 38. Re5 {[%clk 0:00:25]}  Qc2+ {[%clk 0:00:01]} 39. Kg3 {[%clk 0:00:25]} 1-0


[Site "https://www.chess.com"]

[Event "Titled Tuesday Blitz May 16 Late 2023"]
[White "Naroditsky, Daniel"]
[Black "Timmermans, Mark"]
[WhiteFideId "2026961"]
[BlackFideId "1026399"]
[WhiteElo "2633"]
[BlackElo "2460"]
[Result "1-0"]
[Round "05"]
[TimeControl "180+2"]
[Date "2023.05.16"]
[WhiteClock "0:02:15"]
[BlackClock "0:01:26"]

1. e4 {[%clk 0:02:56]}  e5 {[%clk 0:02:58]} 2. Nf3 {[%clk 0:02:55]}  Nc6 {[%clk 0:02:59]} 3. Bb5 {[%clk 0:02:55]}  f5 {[%clk 0:02:59]} 4. d3 {[%clk 0:02:54]}  fxe4 {[%clk 0:02:59]} 5. dxe4 {[%clk 0:02:55]}  Nf6 {[%clk 0:02:59]} 6. O-O {[%clk 0:02:55]}  d6 {[%clk 0:03:00]} 7. Bc4 {[%clk 0:02:55]}  Na5 {[%clk 0:03:00]} 8. Qd3 {[%clk 0:02:50]}  Be7 {[%clk 0:02:57]} 9. Nc3 {[%clk 0:02:47]}  Nxc4 {[%clk 0:02:56]} 10. Qxc4 {[%clk 0:02:48]}  Qd7 {[%clk 0:02:48]} 11. Ng5 {[%clk 0:02:37]}  Rf8 {[%clk 0:02:37]} 12. f4 {[%clk 0:02:37]}  h6 {[%clk 0:02:35]} 13. Nf3 {[%clk 0:02:34]}  exf4 {[%clk 0:02:32]} 14. e5 {[%clk 0:02:34]}  d5 {[%clk 0:02:24]} 15. Qd3 {[%clk 0:02:20]}  Ne4 {[%clk 0:02:23]} 16. Nxd5 {[%clk 0:02:15]}  Bc5+ {[%clk 0:02:03]} 17. Kh1 {[%clk 0:02:15]}  Nf2+ {[%clk 0:02:03]} 18. Rxf2 {[%clk 0:02:15]}  Bxf2 {[%clk 0:01:26]} 19. e6 {[%clk 0:02:15]} 1-0


[Site "https://www.chess.com"]